bitfinex-derivatives/quotes_ETHF0:USTF0_20241105
["timestamp","ask_amount","ask_price","bid_price","bid_amount"]
[1730784693617,1.4838967,2427.4,2427.3,1.66119391]
[1730784694224,1.4838967,2427.4,2427.3,1.66116325]
[1730784695531,1.8961267,2427.4,2427.3,1.66116325]
[1730784695733,1.4838967,2427.4,2427.2,0.4245]
[1730784695928,1.32994,2427.3,2427.2,0.4245]
[1730784697431,0.41226,2427.2,2427.1,0.4306]
[1730784697631,1.8961567,2427.2,2427.1,0.4306]
[1730784698724,1.8961567,2427.2,2427.1,0.84288]
[1730784702535,1.8961567,2427.2,2427.1,0.4306]
[1730784702729,1.8961567,2427.2,2427.1,0.84288]
[1730784703429,1.8961567,2427.2,2427.1,0.4306]
[1730784703634,1.8961567,2427.2,2427.1,0.84288]
[1730784706128,1.8961567,2427.2,2427.1,0.4306]
[1730784706830,1.8961567,2427.2,2427.1,0.84288]
[1730784707035,1.8961567,2427.2,2427.1,0.4306]
[1730784707234,1.8961567,2427.2,2427.1,0.84288]
[1730784708236,1.4838967,2427.2,2427.0,0.4688]
[1730784708437,0.41228,2427.1,2427.0,1.32318]
[1730784708632,1.8961667,2427.2,2427.1,0.41228]
[1730784708834,0.41228,2427.1,2427.0,1.32318]
[1730784709034,1.8961667,2427.2,2427.1,0.41228]
[1730784709235,1.4838967,2427.2,2427.0,0.9109]
[1730784709439,1.8961667,2427.2,2427.1,0.41228]
[1730784711139,0.41228,2427.1,2427.0,1.32318]
[1730784711339,0.41228,2427.1,2427.0,2.12247464]
[1730784711640,1.8961667,2427.2,2427.1,0.41228]
[1730784712633,1.4838967,2427.2,2427.1,0.41228]
[1730784712843,1.4838967,2427.2,2427.1,1.21156331]
[1730784714148,1.8961567,2427.2,2427.1,0.63740439]
[1730784714541,1.4838967,2427.2,2427.1,0.63740439]
[1730784714846,1.4838967,2427.2,2427.1,1.21154019]
[1730784715052,1.8961567,2427.2,2427.1,0.9864158]
[1730784715253,1.4838967,2427.2,2427.1,0.9864158]
[1730784716347,1.8961567,2427.2,2427.1,0.9864158]
[1730784716854,1.8961567,2427.2,2427.1,1.21152502]
[1730784717443,1.8961567,2427.2,2427.1,0.79924502]
[1730784717644,1.8961567,2427.2,2426.9,1.1113]
[1730784717645,0.41229,2427.0,2426.9,0.699]
[1730784717957,42.6961867,2427.0,2426.9,0.699]
[1730784718248,1.8961867,2427.0,2426.9,0.699]
[1730784719152,2.3332867,2427.0,2426.9,0.699]
[1730784719750,6.4532867,2427.0,2426.9,0.699]
[1730784720351,2.3332867,2427.0,2426.9,0.699]
[1730784730571,0.41229,2427.1,2427.0,0.41229]
[1730784730762,0.83659,2427.1,2427.0,0.41229]
[1730784731462,0.4243,2427.1,2426.9,1.1295]
[1730784731664,1.8961867,2427.0,2426.9,1.5418]
[1730784733968,1.4838967,2427.0,2426.9,1.5418]
[1730784736571,1.8961867,2427.0,2426.9,1.5418]
[1730784737969,1.4838967,2427.0,2426.9,1.5418]
[1730784738272,0.4563,2427.3,2426.9,1.70706313]
[1730784738475,0.4505,2427.5,2427.0,4.43976582]
[1730784738674,1.4838967,2427.3,2427.1,0.80215627]
[1730784738970,1.4838967,2427.3,2427.2,1.21441627]
[1730784740070,1.4838967,2427.3,2427.2,4.42218568]
[1730784740775,1.4838967,2427.3,2427.2,8.54218568]
[1730784742074,1.4838967,2427.3,2427.2,9.46624645]
[1730784742273,1.4838967,2427.3,2427.2,8.54218568]
[1730784742669,1.4838967,2427.3,2427.2,4.00992568]
[1730784742872,1.4838967,2427.3,2427.2,4.42218568]
[1730784743970,1.4838967,2427.3,2427.2,8.54218568]
[1730784744173,1.4838967,2427.3,2427.2,3.84465642]
[1730784744373,1.4838967,2427.3,2427.2,4.42210386]
[1730784746173,1.8961367,2427.3,2427.2,4.70884386]
[1730784746373,6.0161367,2427.3,2427.2,3.9068]
[1730784746781,6.0161367,2427.3,2427.2,0.699]
[1730784753382,1.8961367,2427.3,2427.2,1.1364]
[1730784753570,6.0161367,2427.3,2427.2,1.1364]
[1730784753777,1.8961367,2427.3,2427.2,1.54866]
[1730784754088,1.4838967,2427.3,2427.2,1.54866]
[1730784754275,1.4838967,2427.3,2427.2,2.35199657]
[1730784755177,1.4838967,2427.3,2427.2,1.54866]
[1730784755481,1.4838967,2427.3,2427.2,2.1259694]
[1730784755886,1.4838967,2427.3,2427.2,2.35196165]
[1730784757184,1.4838967,2427.3,2427.2,1.77465225]
[1730784757481,0.8769,2427.4,2427.3,0.41224]
[1730784757681,0.8769,2427.4,2427.3,0.83664]
[1730784757881,1.4838967,2427.4,2427.3,0.4244]
[1730784758089,1.4838967,2427.4,2427.3,1.63984075]
[1730784758984,1.4838967,2427.4,2427.3,1.63976687]
[1730784761191,1.4838967,2427.4,2427.3,1.06258459]
[1730784762291,1.4838967,2427.4,2427.3,0.83664]
[1730784768999,1.4838967,2427.4,2427.3,1.63954531]
[1730784769796,1.4838967,2427.4,2427.3,2.33854531]
[1730784770291,1.4838967,2427.4,2427.3,1.76153576]
[1730784770498,1.4838967,2427.4,2427.3,2.33860993]
[1730784774200,1.4838967,2427.4,2427.3,2.33864423]
[1730784776705,1.4838967,2427.4,2427.3,5.54644423]
[1730784778007,1.4838967,2427.4,2427.3,4.74344]
[1730784778207,1.4838967,2427.4,2427.3,5.54674094]
[1730784778403,1.4838967,2427.4,2427.3,1.53564]
[1730784778707,1.4838967,2427.4,2427.3,2.33900355]
[1730784778907,1.4838967,2427.4,2427.3,5.54680355]
[1730784780405,1.8961267,2427.4,2427.3,5.32079785]
[1730784780607,2.3406267,2427.4,2427.3,5.54683041]
[1730784780802,2.3406267,2427.4,2427.3,4.71017048]
[1730784781001,2.3406267,2427.4,2427.3,1.50237048]
[1730784781203,6.0483967,2427.4,2427.0,3.2078]
[1730784781509,1.8961767,2427.1,2427.0,3.2078]
[1730784781908,1.8961767,2427.1,2427.0,3.62009]
[1730784782502,1.8961767,2427.1,2427.0,4.19767576]
[1730784782897,1.8961767,2427.1,2427.0,3.78538576]
[1730784783105,1.8961767,2427.1,2427.0,3.2078]
[1730784783305,1.8961767,2427.1,2427.0,3.78541583]
[1730784784423,6.0161767,2427.1,2427.0,3.78541583]
[1730784785507,6.0161767,2427.1,2427.0,3.2078]
[1730784785913,6.0161767,2427.1,2427.0,3.78540146]
[1730784786109,6.0161767,2427.1,2427.0,3.2078]
[1730784786919,6.0161767,2427.1,2427.0,0.41229]
[1730784787122,6.0161767,2427.1,2427.0,3.2078]
[1730784787621,0.41229,2427.0,2426.9,0.4123]
[1730784787920,0.4509,2427.0,2426.9,4.19762375]
[1730784788119,0.86319,2427.0,2426.9,4.19762375]
[1730784790624,0.4509,2427.0,2426.9,4.19762375]
[1730784791120,1.4838967,2427.1,2426.9,3.78532375]
[1730784791317,1.8961767,2427.1,2427.0,0.98971005]
[1730784791516,1.4838967,2427.1,2427.0,1.42371005]
[1730784791712,0.4231,2427.2,2427.1,0.41228]
[1730784791914,1.4838967,2427.2,2427.1,0.98970005]
[1730784792721,1.8961567,2427.2,2427.1,0.57742005]
[1730784792918,1.4838967,2427.2,2426.9,3.2078]
[1730784793125,1.29398,2427.1,2427.0,1.21572789]
[1730784793422,1.29398,2427.1,2427.0,0.80343789]
[1730784794022,1.29398,2427.1,2427.0,1.21572789]
[1730784794523,2.7778767,2427.1,2427.0,1.21572789]
[1730784794923,2.7778767,2427.1,2427.0,1.21573178]
[1730784795321,2.7778767,2427.1,2427.0,4.42353178]
[1730784795623,2.7778767,2427.1,2427.0,4.01124178]
[1730784796225,2.7778767,2427.1,2427.0,4.42353178]
[1730784797223,2.3655967,2427.1,2427.0,4.42353178]
[1730784798727,2.3655967,2427.1,2427.0,3.62009]
[1730784798927,2.3655967,2427.1,2427.0,4.41974187]
[1730784799120,2.3655967,2427.1,2427.0,4.41974404]
[1730784799320,2.7778767,2427.1,2427.0,4.41974404]
[1730784799524,2.3655967,2427.1,2427.0,4.41974404]
[1730784799920,2.7778767,2427.1,2427.0,4.00745404]
[1730784800226,2.7778767,2427.1,2427.0,4.41974404]
[1730784800621,8.3817734,2427.1,2427.0,3.2078]
[1730784801523,50.1107734,2427.1,2427.0,3.2078]
[1730784803130,49.6984934,2427.1,2426.8,3.2078]
[1730784803434,1.8962067,2426.9,2426.8,3.62013]
[1730784804827,1.4838967,2426.9,2426.8,3.62013]
[1730784807131,0.41227,2427.2,2427.1,0.41228]
[1730784807325,1.8961667,2427.2,2427.1,0.41228]
[1730784807737,1.4838967,2427.2,2427.1,0.41228]
[1730784811534,1.8961567,2427.2,2427.1,0.41228]
[1730784815043,1.4838967,2427.2,2427.1,0.41228]
[1730784815339,1.8961567,2427.2,2427.1,0.41228]
[1730784817145,1.4838967,2427.2,2427.1,0.41228]
[1730784817738,1.8961567,2427.2,2427.1,0.41228]
[1730784821243,1.8961567,2427.2,2427.1,1.21164431]
[1730784821453,1.8961567,2427.2,2427.1,1.21164501]
[1730784822253,1.8961567,2427.2,2427.1,0.98666974]
[1730784822457,1.8961567,2427.2,2427.1,1.2116785]
[1730784823650,1.4838967,2427.2,2427.1,1.2116785]
[1730784824051,1.8961567,2427.2,2427.1,1.21187628]
[1730784825055,1.8961567,2427.2,2427.1,1.21191605]
[1730784825850,1.4838967,2427.2,2427.1,1.21191605]
[1730784826040,1.4838967,2427.2,2427.1,2.13158658]
[1730784826247,1.8961567,2427.2,2427.1,2.13158658]
[1730784827150,1.8961567,2427.2,2427.1,1.21191605]
[1730784830156,1.4838967,2427.2,2427.1,1.21191605]
[1730784830751,1.4838967,2427.2,2427.1,2.13153159]
[1730784831154,1.4838967,2427.2,2427.1,2.13182136]
[1730784833157,1.8275,2427.5,2427.4,0.41223]
[1730784833158,0.4402,2427.5,2427.4,0.41223]
[1730784833358,2.3363067,2427.5,2427.4,4.41994459]
[1730784834148,2.3363067,2427.5,2427.4,0.79991459]
[1730784834449,2.3363067,2427.5,2427.4,1.21214459]
[1730784835758,2.3363067,2427.5,2427.4,0.79991459]
[1730784835959,2.3363067,2427.5,2427.4,0.79973492]
[1730784836154,1.9240967,2427.5,2427.3,0.41224]
[1730784836359,0.41223,2427.4,2427.3,0.41224]
[1730784836555,0.41223,2427.4,2427.3,1.21185038]
[1730784836751,0.41223,2427.4,2427.3,0.79961038]
[1730784837058,0.41223,2427.4,2427.3,1.21185038]
[1730784838461,0.41223,2427.4,2427.3,0.98679485]
[1730784839155,1.9240967,2427.5,2427.3,0.63727215]
[1730784839156,2.3363267,2427.5,2427.3,0.63727215]
[1730784839359,0.41223,2427.4,2427.3,0.41223]
[1730784841955,0.41223,2427.4,2427.3,1.21176969]
[1730784842354,0.41223,2427.4,2427.3,0.41223]
[1730784843459,0.41224,2427.4,2427.2,4.08514]
[1730784843666,1.8961367,2427.3,2427.2,4.08514]
[1730784843858,1.4838967,2427.3,2427.2,4.08514]
[1730784844162,1.4838967,2427.3,2427.2,0.87734]
[1730784844358,1.4838967,2427.3,2427.2,4.08514]
[1730784844955,1.4838967,2427.3,2427.2,4.88461092]
[1730784845161,1.4838967,2427.3,2427.2,1.67681251]
[1730784845362,1.4838967,2427.3,2427.2,4.88461251]
[1730784845553,1.4838967,2427.3,2427.2,5.80370372]
[1730784845763,1.4838967,2427.3,2427.2,4.88461251]
[1730784847563,1.4838967,2427.3,2427.2,4.31015303]
[1730784847768,1.4838967,2427.3,2427.2,1.67680721]
[1730784847965,1.4838967,2427.3,2427.2,4.88460721]
[1730784848661,1.4838967,2427.3,2427.2,5.80379563]
[1730784849169,1.4838967,2427.3,2427.2,9.92379563]
[1730784849667,2.4065967,2427.7,2427.2,9.51155563]
[1730784849668,0.9227,2427.7,2427.2,9.51155563]
[1730784849864,0.46,2427.7,2427.6,0.41219]
[1730784851064,0.87218,2427.7,2427.6,0.41219]
[1730784852071,0.41219,2427.6,2427.5,4.0498]
[1730784852374,0.41219,2427.6,2427.5,4.84752934]
[1730784853364,0.41219,2427.6,2427.5,3.7823872]
[1730784853566,0.41219,2427.6,2427.5,3.2078]
[1730784854068,4.53139,2427.6,2427.5,3.2078]
[1730784854275,4.98609,2427.6,2427.5,3.2078]
[1730784858672,0.86689,2427.6,2427.5,3.2078]
[1730784858969,4.98609,2427.6,2427.5,3.2078]
[1730784859769,0.41219,2427.6,2427.5,3.2078]
[1730784860169,0.41221,2427.5,2427.4,0.41222]
[1730784860472,1.8961067,2427.5,2427.4,0.98673862]
[1730784860672,1.8961067,2427.5,2427.4,0.98673649]
[1730784860879,1.4838967,2427.5,2427.4,0.98673831]
[1730784861067,1.4838967,2427.5,2427.4,0.63533608]
[1730784861266,1.4838967,2427.5,2427.4,1.20984884]
[1730784861466,0.41221,2427.6,2427.4,1.20984884]
[1730784861669,0.41217,2427.8,2427.7,0.41217]
[1730784861873,2.3633667,2427.8,2427.7,0.41217]
[1730784862977,0.41218,2427.7,2427.6,0.41218]
[1730784863581,2.3633667,2427.8,2427.7,0.41218]
[1730784865986,1.9511967,2427.8,2427.7,0.41218]
[1730784866282,2.3633567,2427.8,2427.7,0.41218]
[1730784868083,0.41218,2427.7,2427.6,0.41218]
[1730784868278,1.4838967,2427.7,2427.6,0.99000048]
[1730784868480,1.4838967,2427.7,2427.6,1.21307868]
[1730784869083,1.8960767,2427.7,2427.6,0.99000048]
[1730784869280,1.8960767,2427.7,2427.6,0.41218]
[1730784869486,1.4838967,2427.7,2427.6,0.41218]
[1730784870681,1.8960767,2427.7,2427.6,0.41218]
[1730784870883,1.8960767,2427.7,2427.6,0.41219]
[1730784871782,1.8960767,2427.7,2427.6,0.99347555]
[1730784873091,0.4673,2427.8,2427.6,0.58128555]
[1730784873389,1.4838967,2427.7,2427.6,0.41219]
[1730784873586,1.4838967,2427.7,2427.6,0.63407638]
[1730784873790,1.4838967,2427.7,2427.6,1.2153921]
[1730784875185,1.4838967,2427.7,2427.6,2.14551759]
[1730784875384,1.4838967,2427.7,2427.6,1.2153921]
[1730784876186,1.8960767,2427.7,2427.6,1.2153921]
[1730784876689,1.4838967,2427.7,2427.6,1.2153921]
[1730784877591,1.8960767,2427.7,2427.6,1.2153921]
[1730784879288,1.4838967,2427.7,2427.6,1.2153921]
[1730784879492,1.4838967,2427.7,2427.6,2.14567205]
[1730784879684,1.4838967,2427.7,2427.6,1.2153921]
[1730784880185,1.4838967,2427.7,2427.6,0.41219]
[1730784880391,1.4838967,2427.7,2427.6,1.21555291]
[1730784880593,1.4838967,2427.7,2427.6,1.21554264]
[1730784881094,1.4838967,2427.7,2427.6,2.15120855]
[1730784881285,1.4838967,2427.7,2427.6,2.15119458]
[1730784882899,1.4838967,2427.7,2427.6,1.21888418]
[1730784883193,1.4838967,2427.7,2427.6,2.15451276]
[1730784884191,0.4514,2428.0,2427.6,1.74232276]
[1730784884394,0.41215,2427.9,2427.8,0.41215]
[1730784884593,0.41215,2427.9,2427.8,0.99691786]
[1730784885392,1.4838967,2427.9,2427.8,0.58476786]
[1730784885694,1.4838967,2427.9,2427.8,1.21881327]
[1730784886298,7.92949029,2428.1,2427.8,0.80665327]
[1730784886485,3.61991,2428.1,2428.0,0.41212]
[1730784886689,5.1038067,2428.1,2428.0,0.41212]
[1730784886897,1.4838967,2428.1,2428.0,0.99673948]
[1730784887497,1.8960067,2428.1,2428.0,0.99673948]
[1730784887698,1.8960067,2428.1,2428.0,0.58461948]
[1730784888198,1.4838967,2428.1,2427.9,0.88043]
[1730784888403,0.41212,2428.0,2427.9,0.88043]
[1730784888699,0.41212,2428.0,2427.9,1.4648686]
[1730784889795,1.4838967,2428.1,2427.9,1.0527386]
[1730784889995,1.8960167,2428.1,2428.0,0.41212]
[1730784890298,1.4838967,2428.1,2427.9,0.4683]
[1730784890505,1.8960167,2428.1,2428.0,0.41212]
[1730784893893,1.8960067,2428.1,2428.0,0.41212]
[1730784900000,1.4838967,2428.1,2427.7,3.2078]
[1730784900201,1.4838967,2427.8,2427.7,3.61996]
[1730784900398,1.4838967,2427.8,2427.7,4.42591621]
[1730784901801,1.4838967,2427.8,2427.7,5.3660881]
[1730784901991,1.4838967,2427.9,2427.8,0.41216]
[1730784902299,1.4838967,2427.9,2427.8,1.22395796]
[1730784902500,1.4838967,2427.9,2427.8,2.16414985]
[1730784902998,1.4838967,2427.9,2427.8,1.22395796]
[1730784903199,1.4838967,2427.9,2427.8,2.16412092]
[1730784903502,1.4838967,2427.9,2427.8,1.22395796]
[1730784903903,1.4838967,2427.9,2427.8,0.99975904]
[1730784904199,1.4838967,2427.9,2427.8,1.22395711]
[1730784904388,1.4838967,2427.9,2427.8,1.22395964]
[1730784904589,1.8960367,2427.9,2427.8,0.6363606]
[1730784904791,1.8960367,2427.9,2427.8,0.58765889]
[1730784904991,2.3513367,2427.9,2427.8,0.58765889]
[1730784905399,2.3513367,2427.9,2427.8,0.41216]
[1730784905601,2.3513367,2427.9,2427.8,0.99987774]
[1730784906297,2.3513367,2427.9,2427.8,0.58771774]
[1730784907000,2.3513367,2427.9,2427.8,0.99987774]
[1730784907597,1.9391967,2427.9,2427.8,0.99987774]
[1730784907794,2.3513367,2427.9,2427.8,0.99987774]
[1730784909394,2.3513367,2427.9,2427.8,0.58771774]
[1730784909790,2.3513367,2427.9,2427.8,0.99987774]
[1730784910201,1.4838967,2427.9,2427.8,0.99987774]
[1730784910391,1.4838967,2427.9,2427.8,1.22419914]
[1730784913000,1.4838967,2427.9,2427.8,1.22203948]
[1730784913396,1.4838967,2427.9,2427.8,1.2222755]
[1730784913599,1.4838967,2427.9,2427.8,0.63432633]
[1730784913799,1.4838967,2427.9,2427.8,1.44444527]
[1730784914101,1.4838967,2427.9,2427.8,1.22227894]
[1730784914499,1.4838967,2427.9,2427.8,2.16304041]
[1730784914700,1.4838967,2427.9,2427.8,1.22227894]
[1730784914901,1.4838967,2427.9,2427.8,2.16304169]
[1730784917205,1.4838967,2427.9,2427.8,1.94104364]
[1730784917405,1.9217967,2427.9,2427.8,2.38544929]
[1730784920816,1.9217967,2427.9,2427.8,0.63435437]
[1730784921106,1.9217967,2427.9,2427.8,2.38580017]
[1730784924602,1.9217967,2427.9,2427.8,0.63435437]
[1730784924802,1.9217967,2427.9,2427.8,2.60825886]
[1730784925000,1.9217967,2427.9,2427.8,0.85653106]
[1730784925203,1.9217967,2427.9,2427.8,2.16389581]
[1730784926021,1.9217967,2427.9,2427.8,0.41216]
[1730784926314,1.9217967,2427.9,2427.8,2.16399174]
[1730784927407,1.9217967,2427.9,2427.8,2.16419947]
[1730784928503,1.9217967,2427.9,2427.8,0.41216]
[1730784928703,1.9217967,2427.9,2427.8,1.94210715]
[1730784928903,1.9217967,2427.9,2427.8,2.16434034]
[1730784929209,1.9217967,2427.9,2427.8,5.37214034]
[1730784929410,1.9217967,2427.9,2427.8,2.16434034]
[1730784929708,1.9217967,2427.9,2427.8,5.37214034]
[1730784930705,1.9217967,2427.9,2427.8,2.16434034]
[1730784930910,1.9217967,2427.9,2427.8,5.37214034]
[1730784932520,1.9217967,2427.9,2427.8,3.8422193]
[1730784932721,1.9217967,2427.9,2427.8,4.43074028]
[1730784933018,1.9217967,2427.9,2427.8,5.37237386]
[1730784933218,1.9217967,2427.9,2427.8,2.16457386]
[1730784933415,1.9217967,2427.9,2427.8,5.37237386]
[1730784934010,1.9217967,2427.9,2427.8,2.16457386]
[1730784934413,1.9217967,2427.9,2427.8,5.37237386]
[1730784934812,1.9217967,2427.9,2427.8,2.16457386]
[1730784935216,1.9217967,2427.9,2427.8,5.37237386]
[1730784936110,1.9217967,2427.9,2427.8,3.8422193]
[1730784936310,1.9217967,2427.9,2427.8,4.43077779]
[1730784936619,1.4838967,2428.0,2427.8,7.07915685]
[1730784936920,1.8960267,2428.0,2427.9,2.62473388]
[1730784937618,1.8960267,2428.0,2427.9,3.03687388]
[1730784938709,1.8960267,2428.0,2427.9,2.81442832]
[1730784938914,1.8960267,2428.0,2427.9,3.03671018]
[1730784939417,1.4838967,2428.0,2427.9,3.03671018]
[1730784939615,1.4838967,2428.0,2427.9,3.50521018]
[1730784939819,1.4838967,2428.0,2427.9,3.50519536]
[1730784940117,1.8960167,2428.0,2427.9,3.50519536]
[1730784942318,1.4838967,2428.0,2427.9,3.50519536]
[1730784943413,1.4838967,2428.0,2427.9,1.97512091]
[1730784943618,1.4838967,2428.0,2427.9,3.50516142]
[1730784943920,1.8960167,2428.0,2427.9,3.50516142]
[1730784944120,1.8960167,2428.0,2427.9,3.50516191]
[1730784947222,1.8960167,2428.0,2427.9,1.75284]
[1730784947431,1.8960167,2428.0,2427.9,3.50511856]
[1730784947727,1.9339967,2428.1,2427.9,3.09297891]
[1730784948024,5.80037494,2428.3,2428.2,0.41209]
[1730784948225,6.21244494,2428.3,2428.2,2.16436891]
[1730784948724,6.21244494,2428.3,2428.2,1.75227891]
[1730784949129,6.21244494,2428.3,2428.2,1.22261964]
[1730784950023,6.21244494,2428.3,2428.2,2.16370493]
[1730784950326,1.8959667,2428.3,2428.2,1.22261964]
[1730784950923,1.8959667,2428.3,2428.2,0.5881297]
[1730784951227,1.8959667,2428.3,2428.2,1.0002197]
[1730784953832,1.4838967,2428.3,2428.2,0.58807271]
[1730784954023,1.8959667,2428.3,2428.2,0.58807271]
[1730784954632,1.8959667,2428.3,2428.2,0.41209]
[1730784955033,1.8959667,2428.3,2428.2,1.00016392]
[1730784957435,1.8959667,2428.3,2428.2,0.58807392]
[1730784957634,0.41212,2428.0,2427.9,3.6535]
[1730784957826,1.8960167,2428.0,2427.9,5.40459969]
[1730784958334,1.8960167,2428.0,2427.9,4.59444021]
[1730784958528,1.8960167,2428.0,2427.9,5.40466067]
[1730784958724,1.8960167,2428.0,2427.9,5.4046976]
[1730784959133,1.8960167,2428.0,2427.9,5.40468886]
[1730784959533,1.8960167,2428.0,2427.9,5.81682886]
[1730784959837,1.8960167,2428.0,2427.9,5.40468886]
[1730784960337,0.4594,2428.1,2427.9,5.40468886]
[1730784960635,0.4594,2428.1,2428.0,2.58638565]
[1730784960636,2.3554067,2428.1,2428.0,2.58638565]
[1730784960830,2.3554067,2428.1,2428.0,2.64136565]
[1730784961033,2.3554067,2428.1,2428.0,0.8902]
[1730784961335,2.3554067,2428.1,2428.0,2.64134581]
[1730784961537,2.3554067,2428.1,2428.0,1.70041549]
[1730784961731,2.3554067,2428.1,2428.0,2.6413553]
[1730784961926,2.3554067,2428.1,2428.0,1.70041549]
[1730784962235,2.3554067,2428.1,2428.0,2.64135534]
[1730784962437,2.3554067,2428.1,2428.0,3.05347534]
[1730784963829,2.3554067,2428.1,2428.0,2.64135534]
[1730784964037,2.3554067,2428.1,2428.0,1.70041549]
[1730784964340,2.3554067,2428.1,2428.0,1.11232954]
[1730784964533,2.3554067,2428.1,2428.0,1.70041135]
[1730784965138,2.3554067,2428.1,2428.0,2.64134661]
[1730784965336,2.3554067,2428.1,2428.0,3.05346661]
[1730784967140,2.3554067,2428.1,2428.0,2.64134661]
[1730784967336,2.3554067,2428.1,2428.0,1.70041135]
[1730784967946,2.3554067,2428.1,2428.0,1.11232954]
[1730784968143,2.3554067,2428.1,2428.0,2.11254869]
[1730784968347,2.3554067,2428.1,2428.0,1.52445131]
[1730784968548,0.4553,2428.2,2428.0,1.70043039]
[1730784968750,0.925,2428.3,2428.2,0.41209]
[1730784968947,1.4838967,2428.3,2428.2,1.00018908]
[1730784969339,1.4838967,2428.3,2428.2,1.22230595]
[1730784969644,0.41207,2428.4,2428.2,0.81021595]
[1730784969851,0.41207,2428.4,2428.3,1.00016908]
[1730784970848,0.41207,2428.4,2428.3,0.58809908]
[1730784971055,0.41207,2428.4,2428.3,1.00016908]
[1730784973159,1.8959667,2428.4,2428.3,0.58809908]
[1730784973449,0.41207,2428.3,2428.2,0.85369]
[1730784973654,0.41207,2428.3,2428.2,1.66325527]
[1730784973857,0.41207,2428.3,2428.2,1.44168965]
[1730784974159,1.8959667,2428.4,2428.3,0.41207]
[1730784974456,1.8959667,2428.4,2428.3,0.58801369]
[1730784974653,0.41207,2428.3,2428.2,0.85369]
[1730784974849,0.41207,2428.3,2428.2,1.44170671]
[1730784975050,1.4838967,2428.4,2428.2,1.02961671]
[1730784975254,1.8959667,2428.4,2428.3,1.00008671]
[1730784976359,1.8959667,2428.4,2428.3,0.58801671]
[1730784977153,1.8959667,2428.4,2428.3,1.00008671]
[1730784977359,6.0143667,2428.4,2428.3,0.58801671]
[1730784977559,6.0143667,2428.4,2428.0,0.4671]
[1730784977560,0.41211,2428.1,2428.0,0.4671]
[1730784977760,1.8960067,2428.1,2428.0,1.27672497]
[1730784977959,1.8960067,2428.1,2428.0,1.05514336]
[1730784978260,1.8960067,2428.1,2428.0,1.46726336]
[1730784978661,1.8960067,2428.1,2428.0,0.87922]
[1730784979360,1.8960067,2428.1,2428.0,1.46728567]
[1730784980065,1.8960067,2428.1,2428.0,1.68887906]
[1730784980568,1.4838967,2428.1,2428.0,1.68887906]
[1730784980766,1.4838967,2428.1,2428.0,2.62982021]
[1730784980962,1.8960067,2428.1,2428.0,1.27675906]
[1730784981366,1.4838967,2428.1,2428.0,2.62986447]
[1730784981564,1.8960067,2428.1,2428.0,2.62986447]
[1730784981765,1.8960067,2428.1,2428.0,1.68887906]
[1730784982369,1.8960067,2428.1,2428.0,0.87922]
[1730784982569,1.8960067,2428.1,2428.0,1.68895157]
[1730784983571,1.4838967,2428.1,2428.0,1.68895157]
[1730784983766,1.8960067,2428.1,2428.0,1.68895157]
[1730784983961,1.8960067,2428.1,2428.0,1.72513157]
[1730784984269,1.8960067,2428.1,2428.0,0.58811978]
[1730784984465,0.41214,2427.9,2427.8,0.41216]
[1730784984767,1.8960367,2427.9,2427.8,1.22194049]
[1730784984967,1.8960367,2427.9,2427.8,2.16299987]
[1730784985169,2.3489367,2427.9,2427.8,2.16299987]
[1730784985366,2.3489367,2427.9,2427.8,1.22194049]
[1730784986660,2.3489367,2427.9,2427.8,0.80978049]
[1730784986867,2.3489367,2427.9,2427.8,0.5881596]
[1730784989471,0.4414,2428.0,2427.9,0.41214]
[1730784989672,1.4838967,2427.9,2427.8,0.41216]
[1730784989873,1.4838967,2427.9,2427.8,2.16222991]
[1730784991881,0.4519,2428.2,2427.8,1.75006991]
[1730784992069,1.4838967,2428.0,2427.9,2.16220991]
[1730784993172,1.4838967,2428.0,2427.9,0.41214]
[1730784993474,1.8960167,2428.0,2427.9,2.16220764]
[1730784993777,1.8960167,2428.0,2427.9,1.22156615]
[1730784994076,1.4838967,2428.0,2427.9,1.22156615]
[1730784994275,1.4838967,2428.0,2427.9,1.00004093]
[1730784994574,1.4838967,2428.0,2427.9,1.22157638]
[1730784995470,5.39385597,2428.5,2428.2,0.41209]
[1730784995778,0.87972,2428.7,2428.3,5.84858352]
[1730784995979,1.4838967,2428.6,2428.5,0.41204]
[1730784996176,0.4677,2428.7,2428.5,0.80943638]
[1730784996372,1.4838967,2428.7,2428.6,4.4291293]
[1730784996676,1.4838967,2428.7,2428.6,4.20131681]
[1730784996874,1.4838967,2428.7,2428.6,4.7940001]
[1730784997275,1.4838967,2428.7,2428.6,4.42924919]
[1730785000385,1.4838967,2429.2,2428.6,4.42924919]
[1730785000386,0.71491,2429.3,2429.1,0.41193]
[1730785000574,1.4838967,2429.2,2429.1,0.41193]
[1730785001876,1.9107967,2429.2,2429.1,0.41193]
[1730785003987,4.71548407,2429.8,2429.6,0.41184]
[1730785004287,4.71548407,2429.8,2429.3,3.2078]
[1730785004288,2.3454967,2429.7,2429.3,3.2078]
[1730785004488,1.4838967,2429.5,2429.3,3.2078]
[1730785004679,1.4838967,2429.5,2429.4,0.41189]
[1730785006284,2.3454967,2429.7,2429.6,0.41185]
[1730785006483,4.30366407,2429.8,2429.7,0.41184]
[1730785006783,4.30366407,2429.8,2429.7,0.85114]
[1730785006977,1.4838967,2429.8,2429.7,0.41184]
[1730785007188,1.9227967,2429.8,2429.7,0.41184]
[1730785008692,1.9227967,2429.8,2429.6,3.2078]
[1730785008990,0.41184,2429.7,2429.6,3.2078]
[1730785009393,4.116,2429.7,2429.4,0.41188]
[1730785009594,1.4838967,2429.5,2429.4,0.41188]
[1730785009798,1.8957667,2429.5,2429.3,3.61969]
[1730785009987,0.9225,2429.4,2429.3,3.61969]
[1730785011285,0.9225,2429.4,2429.3,3.6197]
[1730785011596,0.9225,2429.4,2429.3,3.2078]
[1730785011597,1.77249,2429.4,2429.3,3.2078]
[1730785012390,42.7469967,2429.4,2429.3,3.6197]
[1730785013000,42.2838967,2429.4,2429.3,3.6197]
[1730785015399,1.4838967,2429.4,2429.3,0.4119]
[1730785015697,1.8957867,2429.4,2429.2,4.52941]
[1730785015897,1.8957867,2429.4,2429.3,0.4119]
[1730785016197,1.4838967,2429.4,2429.3,0.4119]
[1730785017894,1.8957867,2429.4,2429.3,0.4119]
[1730785018086,1.4838967,2429.4,2429.3,0.4119]
[1730785018483,1.4838967,2429.4,2429.2,4.1175]
[1730785018696,1.8957867,2429.4,2429.2,4.52941]
[1730785018896,1.8957867,2429.4,2429.2,4.06501]
[1730785019299,1.8957867,2429.4,2429.2,3.6531]
[1730785019497,1.8957867,2429.4,2429.3,0.4119]
[1730785019893,1.8957867,2429.4,2429.2,4.06501]
[1730785020196,1.8957867,2429.4,2429.2,3.6531]
[1730785020392,1.8957867,2429.4,2429.2,4.06501]